[Event "Titled Tuesday Blitz November 14 Early 2023"]
[White "Panchenko, Dmitry"]
[Black "Davidson, Kevin"]
[WhiteFideId "4169158"]
[BlackFideId "2056810"]
[WhiteElo "2743"]
[BlackElo "2432"]
[Result "1/2-1/2"]
[Round "4"]
[TimeControl "180+1"]
[Date "2023.11.14"]
[WhiteClock "0:00:15"]
[BlackClock "0:00:00"]
[Board "127"]

1. e4 {[%clk 0:03:00]}  c5 {[%clk 0:02:59]} 2. Nf3 {[%clk 0:03:00]}  d6 {[%clk 0:03:00]} 3. Bb5+ {[%clk 0:03:00]}  Nd7 {[%clk 0:02:59]} 4. a4 {[%clk 0:02:58]}  Nf6 {[%clk 0:02:56]} 5. Nc3 {[%clk 0:02:57]}  a6 {[%clk 0:02:53]} 6. Be2 {[%clk 0:02:56]}  e6 {[%clk 0:02:51]} 7. d4 {[%clk 0:02:44]}  cxd4 {[%clk 0:02:51]} 8. Qxd4 {[%clk 0:02:45]}  Be7 {[%clk 0:02:49]} 9. O-O {[%clk 0:02:45]}  O-O {[%clk 0:02:48]} 10. Rd1 {[%clk 0:02:43]}  Qc7 {[%clk 0:02:46]} 11. Be3 {[%clk 0:02:36]}  Ne5 {[%clk 0:02:39]} 12. Qb6 {[%clk 0:02:28]}  Nxf3+ {[%clk 0:02:20]} 13. Bxf3 {[%clk 0:02:28]}  Qxb6 {[%clk 0:02:21]} 14. Bxb6 {[%clk 0:02:29]}  Bd7 {[%clk 0:01:53]} 15. a5 {[%clk 0:01:53]}  Bc6 {[%clk 0:01:45]} 16. Rd2 {[%clk 0:01:45]}  Rac8 {[%clk 0:01:41]} 17. Rad1 {[%clk 0:01:44]}  Nd7 {[%clk 0:01:35]} 18. Be3 {[%clk 0:01:41]}  f5 {[%clk 0:01:19]} 19. Rxd6 {[%clk 0:01:28]}  Bxd6 {[%clk 0:01:17]} 20. Rxd6 {[%clk 0:01:29]}  Nf6 {[%clk 0:01:08]} 21. Rxe6 {[%clk 0:01:22]}  Nxe4 {[%clk 0:01:04]} 22. Nxe4 {[%clk 0:01:21]}  Bxe4 {[%clk 0:01:01]} 23. Bxe4 {[%clk 0:01:21]}  fxe4 {[%clk 0:01:01]} 24. c3 {[%clk 0:01:19]}  Rfe8 {[%clk 0:00:53]} 25. Rb6 {[%clk 0:01:19]}  Re7 {[%clk 0:00:40]} 26. Kf1 {[%clk 0:01:17]}  Kf7 {[%clk 0:00:37]} 27. Ke2 {[%clk 0:01:13]}  h6 {[%clk 0:00:36]} 28. Bd4 {[%clk 0:01:13]}  Rc6 {[%clk 0:00:29]} 29. Rb4 {[%clk 0:01:09]}  Rg6 {[%clk 0:00:23]} 30. g3 {[%clk 0:01:09]}  Rge6 {[%clk 0:00:23]} 31. Ke3 {[%clk 0:01:05]}  g5 {[%clk 0:00:23]} 32. Bc5 {[%clk 0:01:03]}  Rc7 {[%clk 0:00:22]} 33. Bb6 {[%clk 0:01:01]}  Rc8 {[%clk 0:00:14]} 34. h3 {[%clk 0:01:00]}  Rce8 {[%clk 0:00:13]} 35. Rd4 {[%clk 0:00:59]}  R8e7 {[%clk 0:00:12]} 36. Bc5 {[%clk 0:00:59]}  Rc7 {[%clk 0:00:12]} 37. b4 {[%clk 0:00:58]}  Kf6 {[%clk 0:00:09]} 38. Rxe4 {[%clk 0:00:57]}  Rxe4+ {[%clk 0:00:10]} 39. Kxe4 {[%clk 0:00:58]}  Rd7 {[%clk 0:00:10]} 40. Bd4+ {[%clk 0:00:57]}  Ke6 {[%clk 0:00:09]} 41. f4 {[%clk 0:00:56]}  gxf4 {[%clk 0:00:07]} 42. gxf4 {[%clk 0:00:57]}  Rd5 {[%clk 0:00:06]} 43. c4 {[%clk 0:00:56]}  Rh5 {[%clk 0:00:06]} 44. Be5 {[%clk 0:00:51]}  Rxh3 {[%clk 0:00:06]} 45. f5+ {[%clk 0:00:51]}  Kf7 {[%clk 0:00:06]} 46. b5 {[%clk 0:00:50]}  axb5 {[%clk 0:00:02]} 47. cxb5 {[%clk 0:00:51]}  Ra3 {[%clk 0:00:03]} 48. Bc7 {[%clk 0:00:50]}  Rb3 {[%clk 0:00:02]} 49. a6 {[%clk 0:00:31]}  bxa6 {[%clk 0:00:03]} 50. bxa6 {[%clk 0:00:32]}  Ra3 {[%clk 0:00:03]} 51. Bf4 {[%clk 0:00:31]}  Rxa6 {[%clk 0:00:03]} 52. Be5 {[%clk 0:00:31]}  Ra4+ {[%clk 0:00:03]} 53. Kf3 {[%clk 0:00:31]}  Ra5 {[%clk 0:00:03]} 54. Kf4 {[%clk 0:00:31]}  Ra4+ {[%clk 0:00:03]} 55. Kg3 {[%clk 0:00:31]}  h5 {[%clk 0:00:03]} 56. Kh3 {[%clk 0:00:28]}  Ra5 {[%clk 0:00:02]} 57. Bg3 {[%clk 0:00:28]}  Rxf5 {[%clk 0:00:02]} 58. Kh4 {[%clk 0:00:29]}  Kg6 {[%clk 0:00:03]} 59. Be1 {[%clk 0:00:28]}  Re5 {[%clk 0:00:02]} 60. Bd2 {[%clk 0:00:28]}  Re4+ {[%clk 0:00:03]} 61. Kg3 {[%clk 0:00:29]}  Rd4 {[%clk 0:00:03]} 62. Bf4 {[%clk 0:00:28]}  Kf5 {[%clk 0:00:03]} 63. Bc7 {[%clk 0:00:28]}  Rg4+ {[%clk 0:00:03]} 64. Kh3 {[%clk 0:00:28]}  Rc4 {[%clk 0:00:03]} 65. Bd6 {[%clk 0:00:28]}  Kg5 {[%clk 0:00:03]} 66. Be7+ {[%clk 0:00:28]}  Kg6 {[%clk 0:00:03]} 67. Bd6 {[%clk 0:00:28]}  Rd4 {[%clk 0:00:03]} 68. Be5 {[%clk 0:00:28]}  Re4 {[%clk 0:00:04]} 69. Bd6 {[%clk 0:00:28]}  Kg5 {[%clk 0:00:03]} 70. Bc7 {[%clk 0:00:29]}  Re3+ {[%clk 0:00:03]} 71. Kg2 {[%clk 0:00:29]}  Rc3 {[%clk 0:00:03]} 72. Bd8+ {[%clk 0:00:29]}  Kg4 {[%clk 0:00:03]} 73. Be7 {[%clk 0:00:29]}  Rc2+ {[%clk 0:00:03]} 74. Kg1 {[%clk 0:00:29]}  h4 {[%clk 0:00:04]} 75. Bd6 {[%clk 0:00:29]}  Kh3 {[%clk 0:00:02]} 76. Be5 {[%clk 0:00:29]}  Rc1+ {[%clk 0:00:03]} 77. Kf2 {[%clk 0:00:29]}  Kg4 {[%clk 0:00:02]} 78. Kg2 {[%clk 0:00:29]}  Rc2+ {[%clk 0:00:02]} 79. Kg1 {[%clk 0:00:28]}  Re2 {[%clk 0:00:03]} 80. Bc7 {[%clk 0:00:28]}  Re7 {[%clk 0:00:02]} 81. Bd6 {[%clk 0:00:28]}  Re6 {[%clk 0:00:02]} 82. Bc7 {[%clk 0:00:28]}  Rf6 {[%clk 0:00:02]} 83. Kh2 {[%clk 0:00:28]}  Rf7 {[%clk 0:00:02]} 84. Bd6 {[%clk 0:00:28]}  Rf2+ {[%clk 0:00:03]} 85. Kh1 {[%clk 0:00:27]}  Rd2 {[%clk 0:00:03]} 86. Bc7 {[%clk 0:00:27]}  Kh3 {[%clk 0:00:03]} 87. Kg1 {[%clk 0:00:27]}  Rd1+ {[%clk 0:00:02]} 88. Kf2 {[%clk 0:00:28]}  Rc1 {[%clk 0:00:02]} 89. Be5 {[%clk 0:00:27]}  Rc2+ {[%clk 0:00:02]} 90. Kf1 {[%clk 0:00:26]}  Kg4 {[%clk 0:00:02]} 91. Kg1 {[%clk 0:00:26]}  Kf3 {[%clk 0:00:02]} 92. Kh1 {[%clk 0:00:25]}  Re2 {[%clk 0:00:02]} 93. Bd6 {[%clk 0:00:25]}  Rd2 {[%clk 0:00:01]} 94. Be5 {[%clk 0:00:25]}  Re2 {[%clk 0:00:01]} 95. Bc7 {[%clk 0:00:25]}  h3 {[%clk 0:00:02]} 96. Bd6 {[%clk 0:00:24]}  Kg4 {[%clk 0:00:02]} 97. Bc7 {[%clk 0:00:24]}  Kf3 {[%clk 0:00:02]} 98. Bd6 {[%clk 0:00:24]}  Rd2 {[%clk 0:00:02]} 99. Bc7 {[%clk 0:00:24]}  Rc2 {[%clk 0:00:02]} 100. Bd6 {[%clk 0:00:24]}  Ra2 {[%clk 0:00:02]} 101. Bc7 {[%clk 0:00:24]}  Kf2 {[%clk 0:00:02]} 102. Kh2 {[%clk 0:00:24]}  Ra3 {[%clk 0:00:02]} 103. Be5 {[%clk 0:00:23]}  Rb3 {[%clk 0:00:02]} 104. Bc7 {[%clk 0:00:23]}  Kf3 {[%clk 0:00:02]} 105. Bd6 {[%clk 0:00:17]}  Kg4 {[%clk 0:00:02]} 106. Kg1 {[%clk 0:00:17]}  Rb2 {[%clk 0:00:02]} 107. Bc7 {[%clk 0:00:16]}  Rg2+ {[%clk 0:00:02]} 108. Kh1 {[%clk 0:00:16]}  Re2 {[%clk 0:00:01]} 109. Kg1 {[%clk 0:00:16]}  Re7 {[%clk 0:00:01]} 110. Bd6 {[%clk 0:00:16]}  Rg7 {[%clk 0:00:00]} 111. Kh2 {[%clk 0:00:15]} 1/2-1/2


[Site "https://www.chess.com"]

[Event "Titled Tuesday Blitz November 14 Early 2023"]
[White "Sattarov, Bobir"]
[Black "ATM622"]
[WhiteFideId "14203081"]
[WhiteElo "2739"]
[BlackElo "2431"]
[Result "1-0"]
[Round "4"]
[TimeControl "180+1"]
[Date "2023.11.14"]
[WhiteClock "0:00:40"]
[BlackClock "0:00:28"]
[Board "128"]

1. e4 {[%clk 0:02:58]}  c6 {[%clk 0:02:58]} 2. c4 {[%clk 0:02:56]}  d5 {[%clk 0:02:59]} 3. exd5 {[%clk 0:02:57]}  cxd5 {[%clk 0:03:00]} 4. cxd5 {[%clk 0:02:58]}  Nf6 {[%clk 0:03:00]} 5. Qa4+ {[%clk 0:02:58]}  Bd7 {[%clk 0:02:59]} 6. Qb3 {[%clk 0:02:58]}  Bc8 {[%clk 0:02:59]} 7. Nc3 {[%clk 0:02:57]}  Nbd7 {[%clk 0:02:58]} 8. Bc4 {[%clk 0:02:56]}  Ne5 {[%clk 0:02:47]} 9. d3 {[%clk 0:02:55]}  a6 {[%clk 0:02:42]} 10. a4 {[%clk 0:02:50]}  g6 {[%clk 0:02:35]} 11. Bf4 {[%clk 0:02:48]}  Nfd7 {[%clk 0:02:31]} 12. Nge2 {[%clk 0:02:30]}  Bg7 {[%clk 0:02:29]} 13. O-O {[%clk 0:02:28]}  O-O {[%clk 0:02:23]} 14. Ng3 {[%clk 0:02:24]}  h5 {[%clk 0:02:16]} 15. h3 {[%clk 0:02:20]}  Nc5 {[%clk 0:02:09]} 16. Qc2 {[%clk 0:02:18]}  Qa5 {[%clk 0:01:46]} 17. Rfe1 {[%clk 0:02:06]}  Nxc4 {[%clk 0:01:36]} 18. dxc4 {[%clk 0:02:06]}  h4 {[%clk 0:01:34]} 19. Nge4 {[%clk 0:01:19]}  Bf5 {[%clk 0:01:34]} 20. f3 {[%clk 0:01:18]}  Qb4 {[%clk 0:01:17]} 21. Qe2 {[%clk 0:01:05]}  Nb3 {[%clk 0:01:11]} 22. Rad1 {[%clk 0:01:03]}  Nd4 {[%clk 0:01:00]} 23. Qf2 {[%clk 0:01:00]}  Qxc4 {[%clk 0:00:55]} 24. Qxh4 {[%clk 0:00:59]}  f6 {[%clk 0:00:35]} 25. Be3 {[%clk 0:00:56]}  e5 {[%clk 0:00:32]} 26. dxe6 {[%clk 0:00:54]}  Nxe6 {[%clk 0:00:28]} 27. Nxf6+ {[%clk 0:00:40]} 1-0


[Site "https://www.chess.com"]

[Event "Titled Tuesday Blitz November 14 Early 2023"]
[White "Foisor, Sabina-Francesca"]
[Black "De Silva, L M S T"]
[WhiteFideId "1212915"]
[BlackFideId "9953698"]
[WhiteElo "2429"]
[BlackElo "2715"]
[Result "0-1"]
[Round "4"]
[TimeControl "180+1"]
[Date "2023.11.14"]
[WhiteClock "0:01:09"]
[BlackClock "0:01:30"]
[Board "130"]

1. d4 {[%clk 0:03:00]}  g6 {[%clk 0:02:55]} 2. c4 {[%clk 0:02:59]}  Bg7 {[%clk 0:02:56]} 3. Nc3 {[%clk 0:03:00]}  d6 {[%clk 0:02:56]} 4. Nf3 {[%clk 0:03:00]}  Nd7 {[%clk 0:02:57]} 5. g3 {[%clk 0:03:00]}  e6 {[%clk 0:02:56]} 6. Bg2 {[%clk 0:03:00]}  Ne7 {[%clk 0:02:57]} 7. O-O {[%clk 0:03:01]}  Rb8 {[%clk 0:02:58]} 8. e4 {[%clk 0:02:52]}  b6 {[%clk 0:02:57]} 9. Bg5 {[%clk 0:02:51]}  h6 {[%clk 0:02:57]} 10. Be3 {[%clk 0:02:51]}  Bb7 {[%clk 0:02:57]} 11. Qd2 {[%clk 0:02:51]}  g5 {[%clk 0:02:57]} 12. Rad1 {[%clk 0:02:47]}  Ng6 {[%clk 0:02:57]} 13. d5 {[%clk 0:02:31]}  e5 {[%clk 0:02:56]} 14. b4 {[%clk 0:02:30]}  Bc8 {[%clk 0:02:54]} 15. a3 {[%clk 0:02:29]}  Nf6 {[%clk 0:02:54]} 16. c5 {[%clk 0:02:24]}  Ng4 {[%clk 0:02:52]} 17. cxd6 {[%clk 0:02:20]}  cxd6 {[%clk 0:02:51]} 18. Nb5 {[%clk 0:02:18]}  Nxe3 {[%clk 0:02:46]} 19. Qxe3 {[%clk 0:02:17]}  Qd7 {[%clk 0:02:42]} 20. a4 {[%clk 0:02:15]}  a6 {[%clk 0:02:40]} 21. Nc3 {[%clk 0:02:14]}  O-O {[%clk 0:02:39]} 22. Rc1 {[%clk 0:02:14]}  Qe7 {[%clk 0:02:26]} 23. b5 {[%clk 0:02:12]}  a5 {[%clk 0:02:24]} 24. Nb1 {[%clk 0:02:00]}  f5 {[%clk 0:02:23]} 25. Na3 {[%clk 0:01:58]}  f4 {[%clk 0:02:22]} 26. Qd3 {[%clk 0:01:51]}  g4 {[%clk 0:02:20]} 27. Nd2 {[%clk 0:01:50]}  f3 {[%clk 0:02:20]} 28. Nxf3 {[%clk 0:01:48]}  gxf3 {[%clk 0:02:19]} 29. Bxf3 {[%clk 0:01:49]}  Bh3 {[%clk 0:02:18]} 30. Rfe1 {[%clk 0:01:46]}  Rf7 {[%clk 0:02:09]} 31. Rc6 {[%clk 0:01:45]}  Rbf8 {[%clk 0:02:08]} 32. Re3 {[%clk 0:01:44]}  Qg5 {[%clk 0:02:00]} 33. Rxd6 {[%clk 0:01:40]}  Nh4 {[%clk 0:01:59]} 34. Be2 {[%clk 0:01:18]}  Rxf2 {[%clk 0:01:55]} 35. Nc4 {[%clk 0:01:17]}  Rg2+ {[%clk 0:01:37]} 36. Kh1 {[%clk 0:01:17]}  Rff2 {[%clk 0:01:35]} 37. Nd2 {[%clk 0:01:11]}  Rxh2+ {[%clk 0:01:34]} 38. Kg1 {[%clk 0:01:10]}  Rfg2+ {[%clk 0:01:30]} 39. Kf1 {[%clk 0:01:09]}  Rh1# {[%clk 0:01:30]} 0-1


[Site "https://www.chess.com"]

[Event "Titled Tuesday Blitz November 14 Early 2023"]
[White "Kassimov, Baurzhan"]
[Black "Lukovic, Vladimir"]
[WhiteFideId "13704800"]
[BlackFideId "942952"]
[WhiteElo "2428"]
[BlackElo "2697"]
[Result "1-0"]
[Round "4"]
[TimeControl "180+1"]
[Date "2023.11.14"]
[WhiteClock "0:00:04"]
[BlackClock "0:00:00"]
[Board "131"]

1. c4 {[%clk 0:02:38]}  e5 {[%clk 0:02:56]} 2. Nc3 {[%clk 0:02:37]}  Nc6 {[%clk 0:02:56]} 3. Nf3 {[%clk 0:02:37]}  g6 {[%clk 0:02:54]} 4. e3 {[%clk 0:02:31]}  Bg7 {[%clk 0:02:54]} 5. Be2 {[%clk 0:02:29]}  Nge7 {[%clk 0:02:52]} 6. O-O {[%clk 0:02:29]}  O-O {[%clk 0:02:52]} 7. d4 {[%clk 0:02:27]}  d6 {[%clk 0:02:52]} 8. d5 {[%clk 0:02:23]}  Nb8 {[%clk 0:02:51]} 9. e4 {[%clk 0:02:21]}  h6 {[%clk 0:02:51]} 10. Ne1 {[%clk 0:02:16]}  f5 {[%clk 0:02:50]} 11. Nd3 {[%clk 0:02:15]}  Nd7 {[%clk 0:02:48]} 12. f3 {[%clk 0:02:13]}  Nc5 {[%clk 0:02:47]} 13. Nxc5 {[%clk 0:02:10]}  dxc5 {[%clk 0:02:46]} 14. Be3 {[%clk 0:02:10]}  b6 {[%clk 0:02:43]} 15. Qd2 {[%clk 0:02:10]}  f4 {[%clk 0:02:38]} 16. Bf2 {[%clk 0:02:10]}  g5 {[%clk 0:02:38]} 17. Rfd1 {[%clk 0:02:03]}  Ng6 {[%clk 0:02:34]} 18. d6 {[%clk 0:01:59]}  c6 {[%clk 0:02:30]} 19. d7 {[%clk 0:01:59]}  Bb7 {[%clk 0:02:30]} 20. a3 {[%clk 0:01:49]}  Rf7 {[%clk 0:02:27]} 21. b4 {[%clk 0:01:48]}  Nf8 {[%clk 0:02:04]} 22. bxc5 {[%clk 0:01:47]}  Rxd7 {[%clk 0:02:04]} 23. Qa2 {[%clk 0:01:43]}  bxc5 {[%clk 0:02:02]} 24. Bxc5 {[%clk 0:01:40]}  Ne6 {[%clk 0:02:01]} 25. Bf2 {[%clk 0:01:37]}  c5 {[%clk 0:01:50]} 26. Nd5 {[%clk 0:01:25]}  Nd4 {[%clk 0:01:46]} 27. Bd3 {[%clk 0:01:19]}  Bc6 {[%clk 0:01:44]} 28. Re1 {[%clk 0:01:15]}  Ne6 {[%clk 0:01:20]} 29. Rab1 {[%clk 0:01:13]}  Rb8 {[%clk 0:01:20]} 30. Rxb8 {[%clk 0:01:07]}  Qxb8 {[%clk 0:01:21]} 31. Rb1 {[%clk 0:01:07]}  Qf8 {[%clk 0:01:14]} 32. a4 {[%clk 0:01:02]}  Rb7 {[%clk 0:01:06]} 33. a5 {[%clk 0:01:00]}  Rxb1+ {[%clk 0:01:05]} 34. Qxb1 {[%clk 0:01:00]}  Kh7 {[%clk 0:01:02]} 35. a6 {[%clk 0:00:55]}  h5 {[%clk 0:01:03]} 36. Be2 {[%clk 0:00:43]}  Kh6 {[%clk 0:01:02]} 37. h4 {[%clk 0:00:32]}  Bf6 {[%clk 0:00:56]} 38. hxg5+ {[%clk 0:00:31]}  Bxg5 {[%clk 0:00:56]} 39. Qb2 {[%clk 0:00:27]}  Nd4 {[%clk 0:00:53]} 40. Bd1 {[%clk 0:00:22]}  Qd8 {[%clk 0:00:49]} 41. Qa3 {[%clk 0:00:20]}  Qd6 {[%clk 0:00:43]} 42. Be1 {[%clk 0:00:15]}  Bd8 {[%clk 0:00:41]} 43. Ba5 {[%clk 0:00:15]}  Bxa5 {[%clk 0:00:41]} 44. Qxa5 {[%clk 0:00:16]}  h4 {[%clk 0:00:28]} 45. Ba4 {[%clk 0:00:16]}  Bxd5 {[%clk 0:00:17]} 46. cxd5 {[%clk 0:00:14]}  Qg6 {[%clk 0:00:17]} 47. Qd8 {[%clk 0:00:12]}  Nxf3+ {[%clk 0:00:16]} 48. Kh1 {[%clk 0:00:09]}  Ng5 {[%clk 0:00:11]} 49. Qh8+ {[%clk 0:00:05]}  Nh7 {[%clk 0:00:11]} 50. Qxe5 {[%clk 0:00:05]}  Qg3 {[%clk 0:00:09]} 51. Qe6+ {[%clk 0:00:03]}  Kg7 {[%clk 0:00:08]} 52. Be8 {[%clk 0:00:03]}  Qe1+ {[%clk 0:00:07]} 53. Kh2 {[%clk 0:00:03]}  Qg3+ {[%clk 0:00:07]} 54. Kh1 {[%clk 0:00:04]}  h3 {[%clk 0:00:05]} 55. Qxh3 {[%clk 0:00:03]}  Qe1+ {[%clk 0:00:03]} 56. Kh2 {[%clk 0:00:04]}  Ng5 {[%clk 0:00:00]} 57. Qg4 {[%clk 0:00:04]} 1-0


[Site "https://www.chess.com"]

[Event "Titled Tuesday Blitz November 14 Early 2023"]
[White "Bao, Qilin"]
[Black "Herman, Daniel"]
[WhiteFideId "8605750"]
[BlackFideId "30935008"]
[WhiteElo "2645"]
[BlackElo "2417"]
[Result "1-0"]
[Round "4"]
[TimeControl "180+1"]
[Date "2023.11.14"]
[WhiteClock "0:01:06"]
[BlackClock "0:00:04"]
[Board "137"]

1. d4 {[%clk 0:03:00]}  Nf6 {[%clk 0:02:58]} 2. Bf4 {[%clk 0:02:59]}  g6 {[%clk 0:02:59]} 3. e3 {[%clk 0:02:58]}  Bg7 {[%clk 0:02:59]} 4. Nf3 {[%clk 0:02:57]}  O-O {[%clk 0:02:59]} 5. c3 {[%clk 0:02:57]}  d6 {[%clk 0:03:00]} 6. h3 {[%clk 0:02:56]}  b6 {[%clk 0:03:00]} 7. a4 {[%clk 0:02:56]}  a6 {[%clk 0:02:58]} 8. Be2 {[%clk 0:02:56]}  Bb7 {[%clk 0:02:59]} 9. O-O {[%clk 0:02:56]}  Nbd7 {[%clk 0:02:59]} 10. Nbd2 {[%clk 0:02:56]}  Re8 {[%clk 0:02:54]} 11. Bh2 {[%clk 0:02:55]}  e5 {[%clk 0:02:54]} 12. Nc4 {[%clk 0:02:55]}  e4 {[%clk 0:02:50]} 13. Nfd2 {[%clk 0:02:54]}  Nd5 {[%clk 0:02:49]} 14. Re1 {[%clk 0:02:48]}  f5 {[%clk 0:02:41]} 15. Bf1 {[%clk 0:02:49]}  N7f6 {[%clk 0:02:39]} 16. Qb3 {[%clk 0:02:46]}  Kh8 {[%clk 0:02:38]} 17. Na5 {[%clk 0:02:40]}  Bc8 {[%clk 0:02:30]} 18. Nc6 {[%clk 0:02:27]}  Qd7 {[%clk 0:02:29]} 19. Nb4 {[%clk 0:02:26]}  Nxb4 {[%clk 0:02:24]} 20. Qxb4 {[%clk 0:02:25]}  Bb7 {[%clk 0:01:30]} 21. a5 {[%clk 0:02:14]}  b5 {[%clk 0:01:27]} 22. c4 {[%clk 0:02:14]}  c5 {[%clk 0:01:25]} 23. Qb3 {[%clk 0:01:48]}  b4 {[%clk 0:01:20]} 24. dxc5 {[%clk 0:01:41]}  dxc5 {[%clk 0:01:20]} 25. Qc2 {[%clk 0:01:42]}  Rad8 {[%clk 0:01:15]} 26. Nb3 {[%clk 0:01:41]}  Qc6 {[%clk 0:01:04]} 27. Rad1 {[%clk 0:01:42]}  Nh5 {[%clk 0:00:35]} 28. Rxd8 {[%clk 0:01:38]}  Rxd8 {[%clk 0:00:35]} 29. Rd1 {[%clk 0:01:38]}  Rxd1 {[%clk 0:00:21]} 30. Qxd1 {[%clk 0:01:39]}  Bf6 {[%clk 0:00:21]} 31. Bd6 {[%clk 0:01:32]}  Bxb2 {[%clk 0:00:17]} 32. Bxc5 {[%clk 0:01:33]}  Bf6 {[%clk 0:00:14]} 33. Bxb4 {[%clk 0:01:31]}  Ng7 {[%clk 0:00:14]} 34. Qd6 {[%clk 0:01:24]}  Qxd6 {[%clk 0:00:14]} 35. Bxd6 {[%clk 0:01:25]}  Ne6 {[%clk 0:00:15]} 36. c5 {[%clk 0:01:23]}  Kg7 {[%clk 0:00:15]} 37. Bc4 {[%clk 0:01:15]}  Nd8 {[%clk 0:00:12]} 38. Nd4 {[%clk 0:01:12]}  Bxd4 {[%clk 0:00:07]} 39. exd4 {[%clk 0:01:13]}  Nc6 {[%clk 0:00:08]} 40. Bc7 {[%clk 0:01:07]}  Kf8 {[%clk 0:00:07]} 41. d5 {[%clk 0:01:07]}  Nb4 {[%clk 0:00:08]} 42. c6 {[%clk 0:01:06]}  Ba8 {[%clk 0:00:04]} 43. Bd6+ {[%clk 0:01:06]} 1-0


[Site "https://www.chess.com"]

[Event "Titled Tuesday Blitz November 14 Early 2023"]
[White "Osinovsky, Stepan"]
[Black "Khater, Sherif"]
[WhiteFideId "4157354"]
[BlackFideId "2034280"]
[WhiteElo "2415"]
[BlackElo "2640"]
[Result "1-0"]
[Round "4"]
[TimeControl "180+1"]
[Date "2023.11.14"]
[WhiteClock "0:00:34"]
[BlackClock "0:00:59"]
[Board "138"]

1. e4 {[%clk 0:03:00]}  a6 {[%clk 0:03:00]} 2. d4 {[%clk 0:03:00]}  c6 {[%clk 0:03:01]} 3. Bd3 {[%clk 0:03:00]}  d5 {[%clk 0:03:01]} 4. e5 {[%clk 0:03:00]}  e6 {[%clk 0:03:01]} 5. c3 {[%clk 0:02:59]}  c5 {[%clk 0:03:01]} 6. Nf3 {[%clk 0:02:56]}  Nc6 {[%clk 0:03:02]} 7. O-O {[%clk 0:02:56]}  Nge7 {[%clk 0:02:59]} 8. a3 {[%clk 0:02:56]}  Ng6 {[%clk 0:02:59]} 9. b4 {[%clk 0:02:54]}  cxd4 {[%clk 0:02:59]} 10. cxd4 {[%clk 0:02:54]}  Qb6 {[%clk 0:02:57]} 11. Be3 {[%clk 0:02:48]}  Bd7 {[%clk 0:02:54]} 12. Nc3 {[%clk 0:02:44]}  Na7 {[%clk 0:02:43]} 13. h4 {[%clk 0:02:29]}  Be7 {[%clk 0:02:39]} 14. g3 {[%clk 0:02:24]}  Bb5 {[%clk 0:02:20]} 15. Nxb5 {[%clk 0:02:16]}  Nxb5 {[%clk 0:02:20]} 16. h5 {[%clk 0:02:16]}  Nf8 {[%clk 0:02:20]} 17. Qd2 {[%clk 0:01:51]}  h6 {[%clk 0:02:17]} 18. a4 {[%clk 0:01:41]}  Na7 {[%clk 0:02:16]} 19. Rfb1 {[%clk 0:01:40]}  Nd7 {[%clk 0:02:11]} 20. Rb3 {[%clk 0:01:33]}  Rc8 {[%clk 0:02:06]} 21. b5 {[%clk 0:00:49]}  a5 {[%clk 0:01:55]} 22. Kg2 {[%clk 0:00:46]}  O-O {[%clk 0:01:55]} 23. Bb1 {[%clk 0:00:45]}  Rfd8 {[%clk 0:01:43]} 24. Bxh6 {[%clk 0:00:41]}  gxh6 {[%clk 0:01:43]} 25. Qxh6 {[%clk 0:00:42]}  Nf8 {[%clk 0:01:39]} 26. Ng5 {[%clk 0:00:38]}  Bxg5 {[%clk 0:01:35]} 27. Qxg5+ {[%clk 0:00:38]}  Kh8 {[%clk 0:01:30]} 28. Rf3 {[%clk 0:00:38]}  Qc7 {[%clk 0:00:59]} 29. Rf6 {[%clk 0:00:34]} 1-0


[Site "https://www.chess.com"]

[Event "Titled Tuesday Blitz November 14 Early 2023"]
[White "Kleiman, Jake"]
[Black "YouShallNotPass001"]
[WhiteFideId "2020041"]
[WhiteElo "2637"]
[BlackElo "2412"]
[Result "0-1"]
[Round "4"]
[TimeControl "180+1"]
[Date "2023.11.14"]
[WhiteClock "0:00:17"]
[BlackClock "0:00:22"]
[Board "139"]

1. d4 {[%clk 0:02:56]}  Nf6 {[%clk 0:02:59]} 2. Bf4 {[%clk 0:02:55]}  e6 {[%clk 0:03:00]} 3. e3 {[%clk 0:02:54]}  c5 {[%clk 0:03:01]} 4. c3 {[%clk 0:02:54]}  cxd4 {[%clk 0:03:00]} 5. exd4 {[%clk 0:02:54]}  b6 {[%clk 0:03:00]} 6. Nf3 {[%clk 0:02:53]}  Bb7 {[%clk 0:03:01]} 7. Bd3 {[%clk 0:02:54]}  Be7 {[%clk 0:03:01]} 8. O-O {[%clk 0:02:54]}  O-O {[%clk 0:02:59]} 9. Nbd2 {[%clk 0:02:55]}  Nh5 {[%clk 0:02:58]} 10. Be3 {[%clk 0:02:53]}  d6 {[%clk 0:02:59]} 11. Re1 {[%clk 0:02:51]}  Nd7 {[%clk 0:02:58]} 12. a4 {[%clk 0:02:50]}  a6 {[%clk 0:02:57]} 13. Nc4 {[%clk 0:02:45]}  Qc7 {[%clk 0:02:55]} 14. Nfd2 {[%clk 0:02:42]}  g6 {[%clk 0:02:54]} 15. Bh6 {[%clk 0:02:34]}  Rfe8 {[%clk 0:02:52]} 16. Ne3 {[%clk 0:02:35]}  Ndf6 {[%clk 0:02:50]} 17. g4 {[%clk 0:02:22]}  Ng7 {[%clk 0:02:49]} 18. Bf1 {[%clk 0:02:16]}  Nd5 {[%clk 0:02:33]} 19. Bg2 {[%clk 0:02:09]}  Nxe3 {[%clk 0:02:27]} 20. fxe3 {[%clk 0:02:10]}  e5 {[%clk 0:02:26]} 21. Bxb7 {[%clk 0:02:05]}  Qxb7 {[%clk 0:02:27]} 22. Qf3 {[%clk 0:02:05]}  d5 {[%clk 0:02:17]} 23. Nc4 {[%clk 0:01:51]}  e4 {[%clk 0:02:07]} 24. Qf1 {[%clk 0:01:46]}  dxc4 {[%clk 0:02:07]} 25. Qxc4 {[%clk 0:01:47]}  Rac8 {[%clk 0:02:01]} 26. Qe2 {[%clk 0:01:48]}  Ne6 {[%clk 0:01:56]} 27. Rf1 {[%clk 0:01:48]}  Ng5 {[%clk 0:01:54]} 28. Bxg5 {[%clk 0:01:47]}  Bxg5 {[%clk 0:01:55]} 29. Rf2 {[%clk 0:01:46]}  b5 {[%clk 0:01:54]} 30. axb5 {[%clk 0:01:44]}  axb5 {[%clk 0:01:55]} 31. Raf1 {[%clk 0:01:44]}  Re7 {[%clk 0:01:55]} 32. Ra1 {[%clk 0:01:38]}  Ra8 {[%clk 0:01:45]} 33. Rff1 {[%clk 0:01:38]}  Ree8 {[%clk 0:01:43]} 34. Qf2 {[%clk 0:01:36]}  Qd7 {[%clk 0:01:41]} 35. Qg3 {[%clk 0:01:30]}  Qd5 {[%clk 0:01:33]} 36. h4 {[%clk 0:01:25]}  Be7 {[%clk 0:01:33]} 37. g5 {[%clk 0:01:20]}  Bd6 {[%clk 0:01:32]} 38. Qg4 {[%clk 0:01:17]}  b4 {[%clk 0:01:31]} 39. c4 {[%clk 0:01:00]}  Qxc4 {[%clk 0:01:29]} 40. Rxa8 {[%clk 0:01:00]}  Rxa8 {[%clk 0:01:28]} 41. Qxe4 {[%clk 0:01:01]}  Rc8 {[%clk 0:01:16]} 42. Qf3 {[%clk 0:00:52]}  Qe6 {[%clk 0:01:13]} 43. Rf2 {[%clk 0:00:50]}  b3 {[%clk 0:01:13]} 44. e4 {[%clk 0:00:46]}  Rc2 {[%clk 0:01:13]} 45. e5 {[%clk 0:00:42]}  Bf8 {[%clk 0:01:06]} 46. Kg2 {[%clk 0:00:33]}  Qc4 {[%clk 0:00:51]} 47. d5 {[%clk 0:00:27]}  Rxf2+ {[%clk 0:00:49]} 48. Kxf2 {[%clk 0:00:27]}  Qxh4+ {[%clk 0:00:48]} 49. Ke2 {[%clk 0:00:23]}  Qh2+ {[%clk 0:00:46]} 50. Kd3 {[%clk 0:00:22]}  Qxb2 {[%clk 0:00:45]} 51. e6 {[%clk 0:00:21]}  Qc2+ {[%clk 0:00:37]} 52. Kd4 {[%clk 0:00:19]}  Bc5+ {[%clk 0:00:28]} 53. Ke5 {[%clk 0:00:19]}  Qb2+ {[%clk 0:00:22]} 54. Ke4 {[%clk 0:00:17]}  Qd4# {[%clk 0:00:22]} 0-1


[Site "https://www.chess.com"]